fUSD/lending_fUSD_20250423
["ID","MTS","AMOUNT","RATE_DAILY","PERIOD"]
[358773495,1745421048826,-2729.81745117,0.00045038,18]
[358773497,1745421048835,-798.04,0.00045041,30]
[358773498,1745421048844,-150.0,0.00045076,2]
[358773500,1745421048855,-262.43601228,0.00045096,30]
[358773501,1745421048864,-151.62969598,0.00045096,30]
[358773503,1745421048875,-800.0,0.00045105,120]
[358773504,1745421048885,-800.0,0.00045105,120]
[358773506,1745421048894,-150.0,0.00045109,2]
[358773507,1745421048903,-150.0,0.00045119,2]
[358773508,1745421048912,-150.0,0.00045125,2]
[358773510,1745421048921,-150.0,0.00045147,2]
[358773512,1745421048931,-150.0,0.0004516,2]
[358773513,1745421048940,-447.95,0.00045178,30]
[358773515,1745421048949,-300.4,0.00045178,30]
[358773516,1745421048959,-2110.0,0.00045191,30]
[358773518,1745421048969,-419.39,0.00045205,120]
[358773519,1745421048978,-3500.0,0.00045205,10]
[358773521,1745421048988,-10000.0,0.00045205,14]
[358773522,1745421048998,-10000.0,0.00045205,14]
[358773524,1745421049010,-10000.0,0.00045205,14]
[358773525,1745421049019,-175.354056,0.00045205,14]
[358773527,1745421049029,-175.354056,0.00045205,14]
[358773528,1745421049038,-7652.48,0.00045205,120]
[358773530,1745421049048,-500.0,0.00045205,2]
[358773532,1745421049057,-500.0,0.00045205,2]
[358773533,1745421049066,-267.11,0.00045205,30]
[358773535,1745421049076,-150.0,0.00045215,2]
[358773536,1745421049085,-166.20947444,0.00045233,30]
[358773537,1745421049094,-150.0,0.0004524,2]
[358773539,1745421049103,-150.0,0.00045242,2]
[358773541,1745421049112,-150.0,0.00045247,2]
[358773542,1745421049121,-262.43601228,0.00045288,30]
[358773544,1745421049130,-151.62969598,0.00045288,30]
[358773545,1745421049139,-150.0,0.0004529,2]
[358773547,1745421049147,-167.752978,0.00045295,40]
[358773548,1745421049157,-150.0,0.00045304,2]
[358773550,1745421049166,-6071.18982349,0.00045321,2]
[358773551,1745421049175,-151.0,0.00045321,14]
[358773553,1745421049185,-220.144879,0.00045321,14]
[358773554,1745421049194,-151.0,0.00045321,14]
[358773556,1745421049203,-151.0,0.00045321,14]
[358773557,1745421049212,-150.0,0.00045355,2]
[358773559,1745421049221,-150.0,0.00045366,2]
[358773560,1745421049231,-150.0,0.00045396,2]
[358773562,1745421049240,-150.0,0.00045399,2]
[358773563,1745421049248,-1000.0,0.000454,7]
[358773565,1745421049261,-150.0,0.00045413,2]
[358773566,1745421049270,-150.0,0.0004542,2]
[358773568,1745421049279,-150.0,0.00045421,2]
[358773569,1745421049288,-151.0,0.00045434,14]
[358773571,1745421049297,-151.0,0.00045434,14]
[358773572,1745421049306,-151.0,0.00045434,14]
[358773574,1745421049315,-151.0,0.00045434,14]
[358773575,1745421049324,-150.0,0.00045439,2]
[358773577,1745421049333,-150.0,0.00045448,2]
[358773578,1745421049342,-262.43601228,0.00045452,30]
[358773580,1745421049352,-151.62969598,0.00045452,30]
[358773581,1745421049362,-150.0,0.00045465,2]
[358773583,1745421049371,-150.0,0.00045466,2]
[358773584,1745421049380,-150.0,0.00045473,2]
[358773586,1745421049389,-150.0,0.00045473,2]
[358773587,1745421049399,-3500.0,0.00045479,10]
[358773589,1745421049408,-604.64465951,0.00045479,2]
[358773591,1745421049417,-500.0,0.00045479,2]
[358773592,1745421049426,-150.0,0.00045488,2]
[358773594,1745421049436,-150.0,0.00045492,2]
[358773595,1745421049445,-166.20947444,0.00045507,30]
[358773597,1745421049455,-150.0,0.00045518,2]
[358773598,1745421049468,-150.0,0.00045526,2]
[358773600,1745421049478,-206.18,0.00045546,30]
[358773601,1745421049487,-150.0,0.00045549,2]
[358773603,1745421049497,-150.0,0.00045579,2]
[358773604,1745421049510,-150.0,0.00045584,2]
[358773606,1745421049520,-799.0,0.00045589,30]
[358773607,1745421049529,-799.0,0.00045589,30]
[358773609,1745421049539,-150.0,0.00045591,2]
[358773610,1745421049549,-150.0,0.0004561,2]
[358773612,1745421049559,-213.10817793,0.00045614,40]
[358773613,1745421049568,-799.0,0.00045616,30]
[358773615,1745421049577,-799.0,0.00045616,30]
[358773617,1745421049587,-150.0,0.00045626,2]
[358773618,1745421049595,-150.0,0.00045639,2]
[358773620,1745421049604,-799.0,0.00045644,30]
[358773621,1745421049615,-799.0,0.00045644,30]
[358773623,1745421049624,-799.0,0.00045644,30]
[358773624,1745421049633,-799.0,0.00045644,30]
[358773626,1745421049642,-799.0,0.00045644,30]
[358773627,1745421049651,-799.0,0.00045644,30]
[358773629,1745421049661,-799.0,0.00045644,30]
[358773630,1745421049671,-799.0,0.00045644,30]
[358773632,1745421049680,-799.0,0.00045644,30]
[358773633,1745421049690,-799.0,0.00045644,30]
[358773635,1745421049699,-454.68,0.00045644,30]
[358773637,1745421049708,-454.68,0.00045644,30]
[358773638,1745421049717,-454.68,0.00045644,30]
[358773640,1745421049727,-454.68,0.00045644,30]
[358773642,1745421049736,-454.68,0.00045644,30]
[358773644,1745421049746,-454.68,0.00045644,30]
[358773646,1745421049758,-454.68,0.00045644,30]
[358773648,1745421049767,-454.68,0.00045644,30]
[358773650,1745421049777,-454.68,0.00045644,30]
[358773652,1745421049787,-454.68,0.00045644,30]
[358773654,1745421049797,-319.05,0.00045644,30]
[358773656,1745421049812,-262.43601228,0.00045644,30]
[358773658,1745421049822,-151.62969598,0.00045644,30]
[358773659,1745421049833,-800.0,0.00045653,120]
[358773660,1745421049843,-800.0,0.00045653,120]
[358773661,1745421049853,-150.0,0.00045669,2]
[358773662,1745421049863,-454.68,0.00045671,30]
[358773663,1745421049873,-454.68,0.00045671,30]
[358773664,1745421049882,-454.68,0.00045671,30]
[358773665,1745421049892,-454.68,0.00045671,30]
[358773666,1745421049901,-454.68,0.00045671,30]
[358773667,1745421049911,-454.68,0.00045671,30]
[358773668,1745421049920,-454.68,0.00045671,30]
[358773669,1745421049929,-454.68,0.00045671,30]
[358773670,1745421049939,-454.68,0.00045671,30]
[358773671,1745421049948,-454.68,0.00045671,30]
[358773672,1745421049958,-271.0,0.00045685,90]
[358773673,1745421049968,-913.0,0.00045685,90]
[358773674,1745421049978,-2110.0,0.00045691,30]
[358773675,1745421049990,-2330.51387597,0.00045692,17]
[358773676,1745421050000,-1812.59,0.000457,2]
[358773677,1745421050013,-1812.59,0.000457,2]
[358773678,1745421050024,-1812.59,0.000457,2]
[358773679,1745421050035,-1812.59,0.000457,2]
[358773680,1745421050045,-1812.59,0.000457,2]
[358773681,1745421050055,-150.0,0.00045717,2]
[358773682,1745421050067,-150.0,0.00045745,2]
[358773683,1745421050078,-3500.0,0.00045753,10]
[358773685,1745421050089,-500.0,0.00045753,2]
[358773686,1745421050099,-879.38253565,0.0004577,120]
[358773687,1745421050109,-150.0,0.00045775,2]
[358773688,1745421050119,-209.0,0.0004578,30]
[358773690,1745421050130,-213.0,0.0004578,30]
[358773692,1745421050140,-211.0,0.0004578,30]
[358773694,1745421050151,-166.20947444,0.00045781,30]
[358773696,1745421050162,-1150.78,0.00045781,30]
[358773698,1745421050172,-1150.78,0.00045781,30]
[358773700,1745421050183,-156.57,0.00045781,30]
[358773702,1745421050193,-150.0,0.00045781,30]
[358773704,1745421050204,-1150.78,0.00045781,30]
[358773706,1745421050214,-150.0,0.00045781,30]
[358773709,1745421050226,-150.0,0.00045781,30]
[358773711,1745421050237,-150.0,0.00045781,30]
[358773713,1745421050247,-350.08,0.00045781,30]
[358773716,1745421050273,-150.0,0.00045781,30]
[358773718,1745421050285,-150.0,0.00045781,30]
[358773720,1745421050296,-150.0,0.00045781,30]
[358773723,1745421050308,-160.22,0.00045781,30]
[358773725,1745421050320,-150.0,0.00045781,30]
[358773727,1745421050330,-424.05,0.00045781,30]
[358773729,1745421050341,-152.0,0.0004579,7]
[358773731,1745421050352,-150.0,0.00045796,2]
[358773733,1745421050362,-1460.0,0.000458,120]
[358773735,1745421050374,-1150.78,0.00045808,30]
[358773737,1745421050385,-176.45,0.00045808,30]
[358773740,1745421050395,-355.37,0.00045808,30]
[358773742,1745421050407,-150.0,0.00045808,30]
[358773744,1745421050417,-165.02,0.00045808,30]
[358773746,1745421050428,-450.18,0.00045808,30]
[358773748,1745421050439,-161.75,0.00045808,30]
[358773750,1745421050451,-150.0,0.00045808,30]
[358773753,1745421050465,-351.08,0.00045808,30]
[358773755,1745421050476,-157.72,0.00045808,30]
[358773757,1745421050487,-450.18,0.00045808,30]
[358773759,1745421050499,-150.0,0.00045808,30]
[358773761,1745421050513,-161.75,0.00045808,30]
[358773764,1745421050524,-150.0,0.00045808,30]
[358773766,1745421050536,-150.0,0.00045808,30]
[358773768,1745421050547,-351.08,0.00045808,30]
[358773770,1745421050558,-150.0,0.00045808,30]
[358773772,1745421050569,-450.18,0.00045808,30]
[358773774,1745421050580,-1150.78,0.00045808,30]
[358773776,1745421050590,-161.75,0.00045808,30]
[358773778,1745421050600,-150.0,0.00045808,30]
[358773780,1745421050610,-150.0,0.00045808,30]
[358773783,1745421050621,-351.08,0.00045808,30]
[358773785,1745421050632,-161.75,0.00045808,30]
[358773787,1745421050642,-150.0,0.00045808,30]
[358773789,1745421050653,-1150.78,0.00045808,30]
[358773791,1745421050664,-150.0,0.00045808,30]
[358773793,1745421050674,-150.0,0.00045808,30]
[358773795,1745421050685,-351.08,0.00045808,30]
[358773798,1745421050702,-450.18,0.00045808,30]
[358773800,1745421050714,-1150.78,0.00045808,30]
[358773803,1745421050726,-161.75,0.00045808,30]
[358773805,1745421050737,-450.18,0.00045808,30]
[358773807,1745421050748,-150.0,0.00045808,30]
[358773809,1745421050762,-1150.78,0.00045808,30]
[358773811,1745421050773,-161.75,0.00045808,30]
[358773814,1745421050785,-450.18,0.00045808,30]
[358773816,1745421050797,-184.14,0.00045808,30]
[358773818,1745421050808,-1150.78,0.00045808,30]
[358773820,1745421050820,-450.18,0.00045808,30]
[358773822,1745421050832,-161.75,0.00045808,30]
[358773825,1745421050844,-450.18,0.00045808,30]
[358773827,1745421050856,-1150.78,0.00045808,30]
[358773829,1745421050868,-161.75,0.00045808,30]
[358773831,1745421050880,-450.18,0.00045808,30]
[358773834,1745421050892,-1150.78,0.00045808,30]
[358773836,1745421050904,-450.18,0.00045808,30]
[358773838,1745421050916,-1150.78,0.00045808,30]
[358773840,1745421050928,-1150.78,0.00045808,30]
[358773842,1745421050940,-910.07,0.00045808,30]
[358773845,1745421050952,-1150.78,0.00045808,30]
[358773847,1745421050963,-1150.78,0.00045808,30]
[358773849,1745421050975,-1150.78,0.00045808,30]
[358773851,1745421050987,-1150.78,0.00045808,30]
[358773853,1745421050999,-1150.78,0.00045808,30]
[358773856,1745421051013,-1150.78,0.00045808,30]
[358773858,1745421051025,-1150.78,0.00045808,30]
[358773860,1745421051037,-1150.78,0.00045808,30]
[358773863,1745421051050,-1150.78,0.00045808,30]
[358773865,1745421051063,-1150.78,0.00045808,30]
[358773867,1745421051075,-262.43601228,0.00045808,30]
[358773870,1745421051088,-151.62969598,0.00045808,30]
[358773872,1745421051100,-150.0,0.00045818,2]
[358773874,1745421051112,-1000.0,0.0004584,14]
[358773877,1745421051129,-150.0,0.00045861,2]
[358773879,1745421051142,-150.0,0.00045882,2]
[358773881,1745421051155,-151.0,0.000459,14]
[358773884,1745421051167,-151.838224,0.000459,14]
[358773886,1745421051179,-151.0,0.000459,14]
[358773888,1745421051191,-151.0,0.000459,14]
[358773891,1745421051204,-151.0,0.000459,14]
[358773893,1745421051216,-176.536699,0.000459,14]
[358773895,1745421051228,-230.000722,0.000459,14]
[358773897,1745421051240,-230.000722,0.000459,14]
[358773900,1745421051253,-220.208543,0.000459,14]
[358773902,1745421051265,-151.0,0.000459,14]
[358773904,1745421051277,-151.0,0.000459,14]
[358773906,1745421051289,-535.316781,0.000459,14]
[358773909,1745421051302,-535.316781,0.000459,14]
[358773911,1745421051314,-10448.51873015,0.000459,30]
[358773913,1745421051327,-150.0,0.00045927,2]
[358773915,1745421051339,-150.0,0.00045941,2]
[358773918,1745421051353,-913.0,0.00045959,90]
[358773920,1745421051365,-150.0,0.00045964,2]
[358773922,1745421051377,-714.19911309,0.00045967,14]
[358773925,1745421051389,-77186.3712396,0.00045969,2]
[358773927,1745421051401,-208.22,0.00045972,15]
[358773929,1745421051413,-150.0,0.00045986,2]
[358773931,1745421051426,-8046.34027128,0.0004599,6]
[358773934,1745421051439,-266.36,0.0004599,120]
[358773936,1745421051452,-50000.0,0.00046,2]
[358773938,1745421051467,-879.58231845,0.00046,2]
[358773940,1745421051480,-29208.39176947,0.00046,7]
[358773943,1745421051492,-262.43601228,0.00046,30]
[358773945,1745421051507,-151.62969598,0.00046,30]
[358773947,1745421051520,-50000.0,0.00046,10]
[358773949,1745421051532,-469.78547918,0.00046,120]
[358773951,1745421051544,-20158.61270118,0.00046,2]
[358773954,1745421051560,-151.0,0.00046,14]
[358773956,1745421051573,-12000.0,0.00046,10]
[358773959,1745421051585,-151.0,0.00046,14]
[358773961,1745421051597,-151.0,0.00046,14]
[358773963,1745421051609,-151.0,0.00046,14]
[358773965,1745421051622,-151.0,0.00046,14]
[358773968,1745421051634,-385.468092,0.00046,14]
[358773970,1745421051645,-385.468092,0.00046,14]
[358773972,1745421051657,-151.0,0.00046,14]
[358773974,1745421051670,-151.0,0.00046,14]
[358773976,1745421051682,-151.610495,0.00046,14]
[358773979,1745421051694,-151.0,0.00046,14]
[358773981,1745421051707,-245.795153,0.00046,14]
[358773983,1745421051720,-245.795153,0.00046,14]
[358773985,1745421051731,-151.0,0.00046,14]
[358773988,1745421051743,-152.621675,0.00046,14]
[358773990,1745421051758,-151.0,0.00046,14]
[358773992,1745421051769,-153.778021,0.00046,14]
[358773994,1745421051782,-476.244785,0.00046,14]
[358773996,1745421051793,-476.244785,0.00046,14]
[358773998,1745421051804,-486.563088,0.00046,14]
[358774001,1745421051815,-486.563088,0.00046,14]
[358774003,1745421051827,-257.821998,0.00046,14]
[358774005,1745421051839,-257.821998,0.00046,14]
[358774007,1745421051851,-370.0,0.00046,120]
[358774009,1745421051862,-151.0,0.00046,14]
[358774011,1745421051874,-151.0,0.00046,14]
[358774014,1745421051885,-256.238961,0.00046,14]
[358774016,1745421051896,-256.238961,0.00046,14]
[358774018,1745421051907,-1180.65,0.00046,60]
[358774020,1745421051919,-10203.0,0.00046,120]
[358774022,1745421051930,-2729.81745117,0.00046003,19]
[358774024,1745421051942,-150.0,0.0004602,2]
[358774026,1745421051953,-3500.0,0.00046027,10]
[358774029,1745421051964,-7652.48,0.00046027,120]
[358774031,1745421051975,-500.0,0.00046027,2]
[358774033,1745421051986,-159.52,0.00046027,2]
[358774035,1745421051998,-150.0,0.00046029,2]
[358774037,1745421052011,-150.0,0.00046033,2]
[358774039,1745421052022,-150.0,0.00046033,2]
[358774041,1745421052034,-1000.0,0.00046036,14]
[358774044,1745421052047,-150.0,0.00046044,2]
[358774048,1745421052081,-150.0,0.00046046,2]
[358774051,1745421052098,-166.20947444,0.00046055,30]
[358774054,1745421052116,-150.0,0.00046055,30]
[358774057,1745421052132,-150.0,0.00046058,2]
[358774059,1745421052146,-150.0,0.00046069,2]
[358774061,1745421052158,-150.0,0.0004607,2]
[358774064,1745421052173,-150.0,0.00046077,2]
[358774066,1745421052188,-300.65,0.00046082,30]
[358774069,1745421052203,-150.0,0.00046097,2]
[358774071,1745421052216,-150.0,0.00046114,2]
[358774074,1745421052230,-150.0,0.00046116,2]
[358774076,1745421052244,-342.59,0.00046119,2]
[358774079,1745421052264,-150.0,0.00046124,2]
[358774081,1745421052280,-1000.0,0.00046124,14]
[358774084,1745421052295,-150.0,0.00046132,2]
[358774086,1745421052309,-162.96210182,0.0004614,2]
[358774088,1745421052322,-166.66,0.00046156,2]
[358774090,1745421052334,-262.43601228,0.00046164,30]
[358774093,1745421052346,-151.62969598,0.00046164,30]
[358774095,1745421052361,-150.0,0.00046182,2]
[358774098,1745421052374,-150.0,0.00046189,2]
[358774100,1745421052389,-2110.0,0.00046191,30]
[358774102,1745421052402,-84070.0123652,0.000462,2]
[358774105,1745421052416,-151.0,0.000462,14]
[358774107,1745421052429,-151.0,0.000462,14]
[358774110,1745421052443,-151.0,0.000462,14]
[358774112,1745421052457,-151.0,0.000462,14]
[358774114,1745421052474,-151.0,0.000462,14]
[358774117,1745421052493,-151.0,0.000462,14]
[358774120,1745421052508,-151.0,0.000462,14]
[358774122,1745421052524,-800.0,0.00046201,120]
[358774125,1745421052537,-800.0,0.00046201,120]
[358774127,1745421052552,-500.0,0.00046203,120]
[358774130,1745421052567,-333.4095,0.0004622,80]
[358774132,1745421052580,-150.0,0.00046231,2]
[358774134,1745421052594,-913.0,0.00046233,90]
[358774137,1745421052607,-150.0,0.00046233,2]
[358774139,1745421052621,-150.0,0.00046237,2]
[358774142,1745421052635,-150.0,0.00046243,2]
[358774145,1745421052655,-150.0,0.00046272,2]
[358774148,1745421052672,-150.0,0.00046274,2]
[358774150,1745421052686,-150.0,0.00046285,2]
[358774153,1745421052702,-8092.82802666,0.000463,120]
[358774155,1745421052716,-2963.17525658,0.00046301,10]
[358774157,1745421052727,-500.0,0.00046301,2]
[358774160,1745421052739,-150.0,0.00046323,2]
[358774162,1745421052752,-1000.0,0.00046335,14]
[358774164,1745421052767,-1270.57,0.00046338,15]
[358774167,1745421052783,-150.0,0.0004634,2]
[358774170,1745421052800,-166.20947444,0.00046356,30]
[358774172,1745421052812,-262.43601228,0.00046356,30]
[358774173,1745421052824,-151.62969598,0.00046356,30]
[358774174,1745421052835,-150.0,0.00046364,2]
[358774175,1745421052847,-150.0,0.00046373,2]
[358774176,1745421052860,-150.0,0.00046382,2]
[358774177,1745421052874,-167.752978,0.00046392,60]
[358774178,1745421052893,-16247.13997987,0.000464,14]
[358774179,1745421052907,-150.0,0.000464,2]
[358774180,1745421052919,-1000.0,0.00046411,14]
[358774181,1745421052932,-1186.87411837,0.00046424,120]
[358774182,1745421052943,-150.0,0.00046426,2]
[358774183,1745421052955,-977.77201546,0.00046438,120]
[358774185,1745421052968,-977.77201546,0.00046438,120]
[358774187,1745421052981,-977.77201546,0.00046438,120]
[358774189,1745421052993,-977.77201546,0.00046438,120]
[358774192,1745421053006,-977.77201546,0.00046438,120]
[358774194,1745421053021,-977.77201546,0.00046438,120]
[358774196,1745421053034,-977.77201546,0.00046438,120]
[358774199,1745421053048,-977.77201546,0.00046438,120]
[358774201,1745421053063,-977.77201546,0.00046438,120]
[358774204,1745421053078,-977.77201546,0.00046438,120]
[358774207,1745421053093,-977.77201546,0.00046438,120]
[358774209,1745421053109,-977.77201546,0.00046438,120]
[358774212,1745421053123,-992.81466185,0.00046438,120]
[358774214,1745421053136,-992.81466185,0.00046438,120]
[358774217,1745421053150,-992.81466185,0.00046438,120]
[358774219,1745421053164,-992.81466185,0.00046438,120]
[358774221,1745421053177,-992.81466185,0.00046438,120]
[358774224,1745421053190,-992.81466185,0.00046438,120]
[358774226,1745421053203,-992.81466185,0.00046438,120]
[358774228,1745421053216,-998.57939214,0.00046438,120]
[358774231,1745421053229,-998.57939214,0.00046438,120]
[358774235,1745421053261,-998.57939214,0.00046438,120]
[358774237,1745421053273,-998.57939214,0.00046438,120]
[358774239,1745421053287,-998.57939214,0.00046438,120]
[358774242,1745421053300,-333.4095,0.0004644,80]
[358774244,1745421053313,-150.0,0.00046453,2]
[358774247,1745421053325,-150.0,0.00046454,2]
[358774249,1745421053338,-200.0,0.00046458,120]
[358774251,1745421053350,-1333.0,0.00046466,120]
[358774254,1745421053363,-1825.1644211,0.00046468,2]
[358774256,1745421053376,-150.0,0.00046477,2]
[358774258,1745421053388,-1148.0,0.0004648,120]
[358774261,1745421053401,-1272.1,0.00046495,5]
[358774263,1745421053414,-1270.69,0.00046496,5]
[358774265,1745421053427,-39346.03828985,0.00046497,14]
[358774278,1745421053544,-7606.25996668,0.00046497,14]
[358774280,1745421053557,-1609.87647588,0.00046497,14]
[358774283,1745421053570,-151.0,0.00046497,14]
[358774285,1745421053583,-280.006792,0.00046497,14]
[358774287,1745421053595,-151.0,0.00046497,14]
[358774290,1745421053607,-178.189079,0.00046497,14]
[358774292,1745421053619,-151.0,0.00046497,14]
[358774294,1745421053632,-723.115383,0.00046497,14]
[358774296,1745421053644,-151.0,0.00046497,14]
[358774299,1745421053656,-723.115383,0.00046497,14]
[358774301,1745421053669,-295.016817,0.00046497,14]
[358774303,1745421053680,-295.016817,0.00046497,14]
[358774304,1745421053692,-151.0,0.00046497,14]
[358774305,1745421053704,-151.0,0.00046497,14]
[358774306,1745421053716,-151.0,0.00046497,14]
[358774307,1745421053728,-151.0,0.00046497,14]
[358774308,1745421053742,-435.86772442,0.00046498,14]
[358774309,1745421053754,-4100.0,0.000465,8]
[358774310,1745421053768,-5000.0,0.000465,9]
[358774311,1745421053780,-4500.0,0.000465,2]
[358774312,1745421053791,-387.42,0.000465,42]
[358774313,1745421053803,-387.42,0.000465,42]
[358774314,1745421053816,-387.42,0.000465,42]
[358774315,1745421053827,-387.42,0.000465,42]
[358774316,1745421053840,-387.42,0.000465,42]
[358774317,1745421053852,-387.42,0.000465,42]
[358774318,1745421053865,-387.42,0.000465,42]
[358774319,1745421053877,-387.42,0.000465,42]
[358774320,1745421053890,-387.42,0.000465,42]
[358774321,1745421053903,-387.42,0.000465,42]
[358774322,1745421053916,-387.42,0.000465,42]
[358774323,1745421053928,-387.42,0.000465,42]
[358774324,1745421053940,-913.0,0.00046507,90]
[358774325,1745421053952,-2000.0,0.00046512,3]
[358774326,1745421053965,-151.0,0.00046534,14]
[358774327,1745421053977,-150.0,0.00046534,2]
[358774328,1745421053990,-150.0,0.00046534,2]
[358774329,1745421054002,-61216.4614726,0.00046543,2]
[358774330,1745421054019,-150.0,0.00046544,2]
[358774332,1745421054032,-151.0,0.00046548,14]
[358774334,1745421054044,-151.0,0.00046548,14]
[358774336,1745421054056,-225.746988,0.00046548,14]
[358774338,1745421054068,-225.746988,0.00046548,14]
[358774340,1745421054081,-151.0,0.00046548,14]
[358774341,1745421054093,-151.0,0.00046548,14]
[358774342,1745421054105,-151.0,0.00046548,14]
[358774343,1745421054118,-151.0,0.00046548,14]
[358774344,1745421054130,-216.126837,0.00046548,14]
[358774345,1745421054142,-216.126837,0.00046548,14]
[358774346,1745421054154,-425.024369,0.00046548,14]
[358774347,1745421054167,-425.024369,0.00046548,14]
[358774348,1745421054179,-151.0,0.00046548,14]
[358774349,1745421054191,-151.0,0.00046548,14]
[358774350,1745421054203,-151.0,0.00046548,14]
[358774351,1745421054216,-472.641262,0.00046548,14]
[358774352,1745421054228,-472.641262,0.00046548,14]
[358774353,1745421054239,-150.0,0.00046548,2]
[358774354,1745421054250,-1363.44432,0.00046548,14]
[358774355,1745421054265,-1363.44432,0.00046548,14]
[358774356,1745421054277,-2691.72864514,0.00046553,120]
[358774357,1745421054288,-1254.37,0.00046558,5]
[358774358,1745421054300,-237.412467,0.00046558,14]
[358774359,1745421054311,-151.0,0.00046558,14]
[358774360,1745421054322,-151.0,0.00046558,14]
[358774361,1745421054334,-151.0,0.00046558,14]
[358774362,1745421054345,-197.619778,0.00046558,14]
[358774363,1745421054357,-210.140162,0.00046558,14]
[358774364,1745421054368,-210.140162,0.00046558,14]
[358774365,1745421054380,-809.69687,0.00046558,14]
[358774366,1745421054392,-151.0,0.00046558,14]
[358774367,1745421054403,-809.69687,0.00046558,14]
[358774368,1745421054415,-150.0,0.0004656,2]
[358774369,1745421054427,-1452.7751704,0.0004657,3]
[358774370,1745421054438,-231.444778,0.00046575,14]
[358774371,1745421054449,-231.444778,0.00046575,14]
[358774373,1745421054461,-419.39,0.00046575,120]
[358774375,1745421054474,-150.0,0.00046575,120]
[358774377,1745421054484,-150.0,0.00046575,120]
[358774379,1745421054495,-200.0,0.00046575,120]
[358774381,1745421054507,-150.0,0.00046575,120]
[358774383,1745421054519,-150.0,0.00046575,120]
[358774385,1745421054530,-150.0,0.00046575,120]
[358774387,1745421054542,-200.0,0.00046575,120]
[358774388,1745421054552,-150.0,0.00046575,120]
[358774389,1745421054563,-150.0,0.00046575,120]
[358774390,1745421054574,-200.0,0.00046575,120]
[358774391,1745421054585,-153.69770675,0.00046575,120]
[358774392,1745421054597,-150.0,0.00046575,120]
[358774393,1745421054609,-500.0,0.00046575,2]
[358774394,1745421054620,-7592.0,0.00046575,120]
[358774395,1745421054630,-219.230751,0.00046575,14]
[358774396,1745421054642,-219.230751,0.00046575,14]
[358774397,1745421054652,-150.0,0.00046575,10]
[358774398,1745421054664,-2039.16208523,0.0004658,7]
[358774399,1745421054676,-700.0,0.00046585,17]
[358774400,1745421054687,-700.0,0.00046585,17]
[358774401,1745421054699,-700.0,0.00046585,17]
[358774402,1745421054710,-700.0,0.00046585,17]
[358774403,1745421054722,-700.0,0.00046585,17]
[358774404,1745421054733,-150.0,0.00046586,7]
[358774405,1745421054744,-700.0,0.00046587,17]
[358774406,1745421054756,-700.0,0.00046587,17]
[358774407,1745421054770,-700.0,0.00046587,17]
[358774408,1745421054784,-700.0,0.00046587,17]
[358774410,1745421054798,-700.0,0.00046587,17]
[358774412,1745421054810,-150.76849548,0.0004659,24]
[358774414,1745421054821,-1472.2281237,0.0004659,2]
[358774416,1745421054835,-2698.6561898,0.0004659,2]
[358774418,1745421054846,-225.0107323,0.0004659,2]